Cogmind - Beta 13 X1 @@@ ROGUE MODE // 2023.10.09 @ 18:03:28 Player: Decinym Result: Destroyed by 8R-AWN with 8R-AWN's Boregun Performance ------------- Evolutions (0) 0 Regions Visited (3) 600 Robots Destroyed (10) 50 Value Destroyed (137) 137 Prototype IDs (24) 480 Alien Tech Used (0) 0 Bonus (148) 148 TOTAL SCORE: 1415 Bonus ------- Aligned with FarCom 300 Friendly Fire -152 Cogmind --------- Core Integrity 0/250 Matter 95/400 Energy 265/265 System Corruption 16% Temperature Cool (67) Movement Treading (240) Ox1 Location -10/Exiles Parts ------- > --- POWER (1) -------- Improved Ion Engine > --- PROPULSION (2) --- Light Treads > --- UTILITY (2) ------ Large Storage Unit Medium Matter Pod > --- WEAPON (2) ------- Assault Rifle > --- INVENTORY (15) --- Improved Ion Engine Small Storage Unit Large Matter Pod (108) Improved Grenade Launcher Field Lobotomy Kit (5) Peak State ------------ > --- POWER ------------ Improved Ion Engine > --- PROPULSION ------- Light Treads Compact Wheel > --- UTILITY ---------- Small Storage Unit Experimental Sensor Array > --- WEAPON ----------- Assault Rifle Autogun > --- INVENTORY -------- Improved Ion Engine Improved Ion Engine Light Treads Autogun Autogun Autogun Rocket Launcher [Rating: 18] Favorites ----------- Power Improved Ion Engine Engine Improved Ion Engine Propulsion Light Treads Treads Light Treads Leg Aluminum Leg Wheel Compact Wheel Utility Small Storage Unit Device Terrain Scanner Storage Small Storage Unit Processor Targeting Computer Weapon Autogun Energy Gun Medium Laser Ballistic Gun Autogun Launcher Improved Grenade Launcher Build | -11 -10 -10 -10 ------- Run | Jun Mat Min Exi Slots Evolved . | . . . . Power . | . . . . Propulsion . | . . . . Utility . | . . . . Weapon . | . . . . Parts Attached 24 | . 6 7 11 Power 2 | . 1 . 1 Engine 2 | . 1 . 1 Core . | . . . . Reactor . | . . . . Propulsion 5 | . 2 2 1 Treads 3 | . . 2 1 Leg . | . . . . Wheel 2 | . 2 . . Hover . | . . . . Flight . | . . . . Utility 5 | . 1 2 2 Device 2 | . . 2 . Storage 2 | . . . 2 Processor 1 | . 1 . . Hackware . | . . . . Protection . | . . . . Artifact . | . . . . Weapon 12 | . 2 3 7 Energy Gun . | . . . . Energy Cannon . | . . . . Ballistic Gun 10 | . 2 2 6 Ballistic Cannon . | . . . . Launcher 2 | . . 1 1 Special Weapon . | . . . . Impact Weapon . | . . . . Slashing Weapon . | . . . . Piercing Weapon . | . . . . Special Melee Weapon . | . . . . Unidentified Prototypes 1 | . . 1 . Corrupted Parts 2 | . . 2 . System Corruption 16 | . . 16 . Parts Lost 8 | . . . 8 Power 1 | . . . 1 Propulsion 2 | . . . 2 Utility 1 | . . . 1 Weapon 4 | . . . 4 Highest Loss Streak 8 | . . . 8 To Critical Strikes 7 | . . . 7 Average Slot Usage (%) 85 | . 90 88 82 Engine 14 | . 14 14 14 Treads 19 | . . 14 27 Wheel 8 | . 26 13 . Device 5 | . . . 12 Storage 14 | . 14 14 15 Processor 1 | . 8 2 . Ballistic Gun 20 | . 23 28 10 Naked Turns . | . . . . Heaviest Build 37 | 11 18 18 37 Greatest Support 40 | 20 26 40 40 Greatest Overweight (x) 1 | . . 1 1 Average Overweight (x) . | . . . . Largest Inventory Capacity 15 | . 8 8 15 Average Capacity 10 | . 8 8 13 Most Carried 9 | . 8 8 9 Average Carried 7 | . 7 7 7 Final Capacity 15 | 8 8 8 15 Final Carried 8 | 6 8 8 5 Class Distribution -------------------- 100% | Mutant Dominant Class ---------------- Mutant | -10/Materials Mutant | -10/Mines Mutant | -10/Exiles Resources | -11 -10 -10 -10 ----------- Run | Jun Mat Min Exi Matter Collected 665 | 200 48 211 206 Remotely . | . . . . Salvage Created 378 | . 48 305 25 Parts 31 | . 6 25 . Haulers Intercepted . | . . . . Recyclers Shooed . | . . . . Parts Field Recycled . | . . . . Retrieved Matter . | . . . . Parts Self-Destructed . | . . . . Prevented . | . . . . Kills | -11 -10 -10 -10 ------- Run | Jun Mat Min Exi Combat Hostiles Destroyed 9 | . . 2 7 Guns 3 | . . 2 1 AOE 6 | . . . 6 Classes Destroyed 7 | . 1 5 1 Worker 1 | . . 1 . Builder 2 | . . 2 . Tunneler 1 | . . 1 . Recycler 1 | . . 1 . Watcher 2 | . 2 . . Grunt 2 | . . 2 . Assembled 7 | . . . 7 Thug 1 | . . 1 . Best Kill Streak 6 | . 1 2 6 Combat Bots Only 6 | . . 2 6 Max Kills in Single Turn 2 | . 1 1 2 Gunslinging . | . . . . Exploded 2 | . . . 2 Melee . | . . . . Uniques/NPCs Destroyed . | . . . . Combat | -11 -10 -10 -10 -------- Run | Jun Mat Min Exi Damage Taken 1375 | . . 170 1205 Core 256 | . . 27 229 Absorbed by Shields . | . . . . Core Remaining (%) 100 | 100 . . . Volleys Fired 69 | . 3 15 51 Largest 2 | . 2 2 2 Hottest 46 | . 46 46 46 Shots Fired 121 | . 6 31 84 Gun 116 | . 6 30 80 Cannon . | . . . . Launcher 5 | . . 1 4 Special . | . . . . Kinetic 116 | . 6 30 80 Thermal . | . . . . Explosive 5 | . . 1 4 Electromagnetic . | . . . . Robot Hit Streak 10 | . 1 7 10 Robot Miss Streak 4 | . 1 2 4 Penetration Max . | . . . . Secondary Targets . | . . . . Shots Hit Robots 80 | . 3 18 59 Core Hits 37 | . 2 11 24 Critical Kills . | . . . . Critical Parts Destroyed . | . . . . Critical Strikes . | . . . . Melee Attacks . | . . . . Impact . | . . . . Slashing . | . . . . Piercing . | . . . . Sneak Attacks . | . . . . Combat Hostiles . | . . . . Follow-up Attacks . | . . . . Damage Inflicted 1613 | . 47 289 1277 Guns 1150 | . 47 232 871 Cannons . | . . . . Explosions 458 | . . 52 406 Melee . | . . . . Ramming 5 | . . 5 . Kinetic 1150 | . 47 232 871 Thermal . | . . . . Explosive 458 | . . 52 406 Electromagnetic . | . . . . Impact . | . . . . Slashing . | . . . . Piercing . | . . . . Highest Corruption 16 | . . 16 16 Average Corruption 15 | . . 15 16 Corruption Purged . | . . . . Corruption Blocked . | . . . . Effects 53 | . . 7 46 Message Errors 16 | . . 3 13 Matter Fused 8 | . . 1 7 Heat Flow Errors 6 | . . 1 5 Energy Discharges 10 | . . . 10 Data Loss (minor) 1 | . . 1 . Data Loss (major) 1 | . . 1 . Misfires 1 | . . . 1 Alerts 2 | . . . 2 Weapon Failures 8 | . . . 8 Overload Shots . | . . . . Overflow Damage 51 | . . . 51 Projectiles . | . . . . Explosions 51 | . . . 51 Melee . | . . . . Knockbacks . | . . . . Impact . | . . . . Kinetic . | . . . . Secondary . | . . . . Self-Inflicted Damage 65 | . . 35 30 Shots 2 | . . 1 1 Rammed 3 | . . 3 . Targets Rammed 3 | . . 3 . Kicked . | . . . . Crushed . | . . . . Highest Temperature 281 | . 8 134 281 Average Temperature 52 | . 6 22 64 Received Heat Transfer 60 | . . 60 . Siege Activations . | . . . . Robots Corrupted . | . . . . Combat Hostiles . | . . . . Parts Fried . | . . . . Impact Corruptions . | . . . . Robots Melted . | . . . . Combat Hostiles . | . . . . Parts Melted . | . . . . Heat Transferred . | . . . . Parts Sabotaged . | . . . . Parts Stolen . | . . . . Parts Stripped . | . . . . Power Chain Reactions . | . . . . Missiles Intercepted . | . . . . Alert | -11 -10 -10 -10 ------- Run | Jun Mat Min Exi Peak Influence 80 | . 29 80 . Initial 10 | . . 10 . Average 23 | . 12 24 . Maximum Alert Level . | . . . . Low Security (%) 100 | . 100 100 . Level 1 . | . . . . Level 2 . | . . . . Level 3 . | . . . . Level 4 . | . . . . Level 5 . | . . . . High Security . | . . . . Max Security . | . . . . Squads Dispatched . | . . . . Investigation . | . . . . Extermination . | . . . . Reinforcement . | . . . . Assault . | . . . . Garrison . | . . . . Intercept . | . . . . Searches Triggered . | . . . . Construction Impeded . | . . . . Haulers Reinforced . | . . . . Active Scanning Responses . | . . . . Cargo Convoy Interrupts . | . . . . Stealth | -11 -10 -10 -10 --------- Run | Jun Mat Min Exi Distress Signals . | . . . . Communications Jammed . | . . . . Distress Signals . | . . . . Times Spotted 12 | . 2 2 8 Peak Tracking Total 9 | . 1 2 9 Tactical Retreats . | . . . . Traps | -11 -10 -10 -10 ------- Run | Jun Mat Min Exi Traps Triggered 1 | . . 1 . Indirectly . | . . . . Trap Hack Attempts . | . . . . Triggered . | . . . . Disarmed . | . . . . Reprogrammed . | . . . . Reused . | . . . . Traps Extracted . | . . . . Installed . | . . . . Triggered . | . . . . Machines | -11 -10 -10 -10 ---------- Run | Jun Mat Min Exi Machines Disabled 8 | . . . 8 Max in Single Turn 2 | . . . 2 Machines Repaired . | . . . . Machines Sabotaged . | . . . . Overloaded Fab Kills . | . . . . Hacking | -11 -10 -10 -10 --------- Run | Jun Mat Min Exi Machines Accessed 6 | . 1 3 2 Terminals 3 | . 1 2 . Fabricators . | . . . . Repair Stations . | . . . . Recycling Units . | . . . . Scanalyzers . | . . . . Garrison Access . | . . . . Total Hacks 8 | . 3 3 2 Successful 4 | . 1 1 2 Failed 4 | . 2 2 . Catastrophic 1 | . . 1 . Database Lockouts . | . . . . Manual 6 | . 3 2 1 Terminals 5 | . 3 2 . Fabricators . | . . . . Repair Stations . | . . . . Recycling Units . | . . . . Scanalyzers . | . . . . Garrison Access . | . . . . Terminal Hacks 4 | . 1 1 2 Record 1 | . . . 1 Open Door 1 | . . 1 . Zone Layout 1 | . 1 . . Derelict Proto ID Bank 1 | . . . 1 Fabricator Hacks . | . . . . Repair Station Hacks . | . . . . Recycling Unit Hacks . | . . . . Scanalyzer . | . . . . Garrison Access Hacks . | . . . . Unauthorized Hacks . | . . . . Terminals . | . . . . Fabricators . | . . . . Repair Stations . | . . . . Recycling Units . | . . . . Scanalyzers . | . . . . Garrison Access . | . . . . Data Cores Recovered . | . . . . Used . | . . . . Hacking Detections 3 | . 1 2 . Full Trace Events . | . . . . Feedback Events . | . . . . Feedback Blocked . | . . . . Robot Schematics Acquired . | . . . . Robots Built . | . . . . Authchips . | . . . . Time . | . . . . Total Robot Build Rating . | . . . . Part Schematics Acquired . | . . . . Parts Built . | . . . . Authchips . | . . . . Time . | . . . . Total Part Build Rating . | . . . . Parts Repaired . | . . . . Time . | . . . . Parts Recycled . | . . . . Recycled Matter . | . . . . Retrieved Matter . | . . . . Retrieved Components . | . . . . Parts Scanalyzed . | . . . . Part Schematics Acquired . | . . . . Parts Damaged . | . . . . Bothacking | -11 -10 -10 -10 ------------ Run | Jun Mat Min Exi Used RIF Installer . | . . . . Robots Hacked . | . . . . Non-combat . | . . . . Combat . | . . . . Robot Hacks Applied . | . . . . Relay Couplers Released . | . . . . Fabnet Peak Effective % . | . . . . Robots Rewired . | . . . . Allies Hacked . | . . . . Hacks Repelled . | . . . . Allies | -11 -10 -10 -10 -------- Run | Jun Mat Min Exi Total Allies 1 | . . 1 . Largest Group 1 | . . 1 . Highest-Rated Group 31 | . . 31 . Highest-Rated Ally 31 | . . 31 . Total Orders . | . . . . Ally Attacks 1 | . . 1 . Total Damage . | . . . . Kills . | . . . . Allies Corrupted . | . . . . Allies Melted . | . . . . Intel | -11 -10 -10 -10 ------- Run | Jun Mat Min Exi Robot Analysis Total . | . . . . Derelict Logs Recovered 1 | . . 1 . Drone Launches . | . . . . Drone Recoveries . | . . . . Exploration | -11 -10 -10 -10 ------------- Run | Jun Mat Min Exi Turns Passed 2217 | . 160 1087 970 Spaces Moved 1350 | 1 144 712 493 Core . | . . . . Treads 621 | . . 128 493 Legs 6 | 1 5 . . Wheels 723 | . 139 584 . Hover . | . . . . Flight . | . . . . Fastest Speed 90 | 120 90 90 165 Average Speed 131 | 120 91 117 165 Slowest Speed 240 | 120 120 165 240 Overloaded Moves . | . . . . Propulsion Burnouts . | . . . . Robots Hopped . | . . . . Cave-ins Triggered . | . . . . Exploration Rate (%) 49 | 2 24 95 76 Regions Visited 3 Branch Regions 2 Pre-discovered Areas 1 | . . . 1 Known Exits Taken . | . . . . Unknown Exits Taken 3 | 1 1 1 . Scrap Searched . | . . . . Spaces Dug . | . . . . Terrain Destroyed 36 | . . 12 24 Melee . | . . . . Projectile . | . . . . AOE 36 | . . 12 24 Terrain Rammed . | . . . . Walls Destroyed . | . . . . Machines Disabled . | . . . . Actions | -11 -10 -10 -10 --------- Run | Jun Mat Min Exi Total 1687 | . 169 943 575 Wait 206 | . 4 195 7 Move 1347 | . 143 711 493 Hop . | . . . . Pick Up 17 | . 6 4 7 Fast Attach 7 | . 3 2 2 Attach 11 | . 2 3 6 Detach 2 | . . 2 . Swap 6 | . 1 2 3 Drop 19 | . 7 6 6 Fire 69 | . 3 15 51 Melee . | . . . . Ram 3 | . . 3 . Kick . | . . . . Crush . | . . . . Escape Stasis . | . . . . Rewire . | . . . . Trap . | . . . . Miscellaneous . | . . . . Route ------- -11/Junkyard -10/Materials -10/Mines (discovered 4 exits: [*Mat x2] / *Exi / [*Sub]) -10/Exiles History --------- Turn | Location | Event 1 | -11/Junkyard | Discovered new exit (range 0) 1 | -11/Junkyard | Entered Materials 1 | -10/Materials | Discovered new exit (range 8) 161 | -10/Materials | Entered Mines 169 | -10/Mines | Received a Rocket Launcher from a helpful Derelict 179 | -10/Mines | Met a Derelict bent on vengeance 200 | -10/Mines | Discovered new exit (range 5) 284 | -10/Mines | Escorted by a lone wolf Derelict 285 | -10/Mines | Learned 2 Materials zone layouts 305 | -10/Mines | Build established: Mutant 371 | -10/Mines | Found a damaged Exp. Sensor Array with a note attached 375 | -10/Mines | Found Prototype Device 375 | -10/Mines | Identified Exp. Sensor Array 397 | -10/Mines | Assembled infested the area 467 | -10/Mines | Discovered new exit (range 10) 997 | -10/Mines | Discovered new exit (range 14) 1017 | -10/Mines | Met a Derelict who couldn't figure out how to use a Trap Extractor 1030 | -10/Mines | System corruption reached 10% 1120 | -10/Mines | Discovered new exit (range 5) 1248 | -10/Mines | Entered Exiles 1288 | -10/Exiles | Met 8R-AWN 1318 | -10/Exiles | Met EX-HEX 1382 | -10/Exiles | Met EX-DEC 1577 | -10/Exiles | Learned location of Zion (-7) 1685 | -10/Exiles | Visited The Gauntlet 1821 | -10/Exiles | Met EX-BIN 1843 | -10/Exiles | Aligned with FarCom system 1844 | -10/Exiles | Given EX-Vault access code 1882 | -10/Exiles | Opened EX-Vault 1894 | -10/Exiles | Found Field Lobotomy Kit 1931 | -10/Exiles | Warned to stay clear of 0b10 Research branches 2015 | -10/Exiles | Attacked by the Exiles 2140 | -10/Exiles | Core integrity fell below 50% 2181 | -10/Exiles | Core integrity fell below 20% 2218 | -10/Exiles | Destroyed by 8R-AWN with 8R-AWN's Boregun Last Messages --------------- 02201_ HV Slug penetrates Wall. 02201_ Penetrated by HV Slug. 02201_ HV Slug penetrates Wall. 02205_ Penetrated by HV Slug. 02205_ Critical hit (Destroy). 02205_ Autogun destroyed. 02205_ HV Slug penetrates Wall. 02205_ Penetrated by HV Slug. 02205_ HV Slug penetrates Wall. 02209_ Acquired Assault Rifle. 02209_ Penetrated by HV Slug. 02209_ Critical hit (Destroy). 02209_ Autogun destroyed. 02209_ HV Slug penetrates Machine. 02209_ HV Slug penetrates Wall. 02214_ Penetrated by HV Slug. 02214_ HV Slug penetrates Machine. 02214_ Penetrated by HV Slug. 02214_ HV Slug penetrates Machine. 02218_ Penetrated by HV Slug. Map ----- +----------------------------------------------------+ | ?????????????????????????????????????????????????? | | ?????????????????????????????????????????????????? | | ?????????????????????????????????????????????????? | | ?????????????????????????????????????????????????? | | ?????????????????????????????????????????????????? | | ?????????????????????????????????????????????????? | | ?????????????????????????????????????????????????? | | ?????????????????????????????????????????????????? | | ??????????? ????????????????????????????????????? | | ?????????? ???????????????????????????????????? | | ??????????# ??????????????????????????????????? | | ??????????# ?????????????????????????????????? | | ???????????# ?????????????#######????????????? | | ???????????# #######??????#!!! "#????????????? | | ???????????# #""##?????# "#????????????? | | ????????????# #?????# #????????????? | | ????????????##" ##???## "#????????????? | | ????????????#"" #####" "#???????????? | | ???????????????# ## "#????????????" | | ???????????????## ! # #??????????????" | | ????????????????#"## ###???????????"" | | ???????????????????#### ##??????????"" | | ??????????????????????### ###????????? | | ????????????????########" # #??????????" | | ????????????????# !"" #??????# | | ????????????????# @ ## ##???### | | ????????????????# g ! ; ""#####X# | | ????????????????# !##### | | ????????????????# "###???# | | ?????????????# ;;;###;###?????## | | ??????????# #???###?????????## | | ???????? #???????????????????#### | | ???????? #????????????????????????## | | ????????# #???????????????????????????## | | ????????#???????????????????????????????##" | | ?????????????????????????????????????????#"" | | ????????????????????????????????????????##" | | ????????????????????????????????????????#"" | | ???????????????????????????????????????##""" | | ???????????????????????????????????????#""" | | ???????????????????????????????????????#""" | | ???????????????????????????????????????#"" | | ???????????????????????????????????????#""" | | ???????????????????????????????????????#"" | | ???????????????????????????????????????##"" | | ????????????????????????????????????????#"""" | | ????????????????????????????????????????## | | ?????????????????????????????????????????#" | | ?????????????????????????????????????????#"""" | | ?????????????????????????????????????????#"" | +----------------------------------------------------+ Best States ------------- Heat Dissipation 25 Energy Generation 12 Energy Capacity 265 Matter Stores 300 Matter Capacity 400 Sight Range 16 Terrain Scan Density 10 Evasion (%) 42 Targeting Accuracy 5 Recoil Reduction 2 Item Schematics ----------------- None Robot Schematics ------------------ None Fabricated ------------ Nothing Alien Tech Used ----------------- None Achievements -------------- None Challenges ------------ None Game ------ Seed NeutronAluminumFirepult Manual? 0 Play Time 00:14:28 Cumulative 356.9 hours Start 2023.10.09 @ 00:04:16 End 2023.10.09 @ 18:03:28 Sessions 3 Manual Loads 0 Difficulty Rogue Special Mode None Game No. 377 Rogue 377 Adventurer 0 Explorer 0 Win Type - Total 29 Types 16/3/4/1/2/0/3/0/0 Lore% 86 Gallery% 87 Achievement% 82 Wizard Run 0 Options --------- ASCII 0 Keyboard 0 Movement Arrows Keybinds 0 Fullscreen 2 Font 24/Smallcaps Map View 76x50 Tactical HUD 1 Map Filters NONE Filters NONE Steam 1 RUN: 3adec884-7d67-482b-ad1b-2dc6da406c1d